[Event "FIDE CB Open 2022"]
[Site "Ceske Budejovice"]
[Date "2022.07.05"]
[Round "5.34"]
[White "Vrchotka, Josef"]
[Black "Kosut, Tomas"]
[Result "1-0"]
[ECO "B07"]
[WhiteElo "1959"]
[BlackElo "1820"]
[Annotator "TA"]
[PlyCount "115"]
[EventDate "2022.07.01"]
[EventType "swiss"]
[EventCountry "CZE"]
[SourceTitle "playchess.com"]
[Source "ChessBase"]
[SourceQuality "1"]
[TimeControl "40/5400+30:1800+30"]

{[%evp 12,115,42,35,55,0,44,47,66,21,58,0,0,-15,10,-17,-20,-16,52,39,52,10,17,17,42,37,53,51,35,35,72,78,71,75,114,123,309,104,105,103,164,167,153,152,142,151,229,-301,-296,-282,-283,-277,-245,-468,-450,-443,-14,-16,173,181,277,285,262,254,219,162,272,273,270,254,383,369,368,357,558,547,568,441,733,716,735,733,730,729,718,685,710,661,521,0,638,635,1086,1005,957,835,1487,1350,1425,1365,2842,2633,6406,5485,29981,29975]} 1. e4 {[%emt 0:00:22]} c5 {[%emt 0:00:07]} 2. c3 {[%emt 0:00:09]} d6 {[%emt 0:01:00]} 3. d4 {[%emt 0:00:36]} Nf6 {[%emt 0:02:22]} 4. Bd3 {[%emt 0:02:01]} g6 {[%emt 0:01:59]} 5. Nf3 {[%emt 0:00:56]} Bg7 {[%emt 0:00:51]} 6. O-O {[%emt 0:00:35]} O-O {[%emt 0:01:29]} 7. Re1 {[%emt 0:00:55]} Qc7 {[%emt 0:02:15] B07: Pirc Defence: Miscellaneous Systems.} 8. Bf4 {[%emt 0:04:08] [#]} (8. h3 $1 $14) 8... Nh5 $146 {[%emt 0:25:36]} ({Predecessor:} 8... Bg4 9. Nbd2 cxd4 10. cxd4 Nc6 11. h3 Bxf3 12. Nxf3 Nd7 13. Be3 Rac8 14. Qd2 Qb6 {1-0 (47) Godena,M (2517)-Polgar,J (2711) Dresden 2008}) 9. Be3 {[%emt 0:04:13]} e5 {[%emt 0:05:06] White is slightly better.} 10. Qc1 {[%emt 0:10:04]} b6 {[%emt 0:21:14]} 11. dxe5 {[%emt 0:05:18]} ({White should play} 11. d5 $14) 11... dxe5 $11 {[%emt 0:00:30]} 12. Bh6 {[%emt 0:06:52]} Bg4 {[%emt 0:06:32]} 13. Be2 {[%emt 0:07:35]} Bxh6 {[%emt 0:06:20]} 14. Qxh6 {[%emt 0:00:14] Strongly threatening Ng5.} Bxf3 {[%emt 0:00:31]} (14... Nf4 $1 $11) 15. Bxf3 $14 {[%emt 0:01:18]} Nf4 {[%emt 0:00:37]} 16. g3 {[%emt 0:06:42]} Nd3 {[%emt 0:01:20][%csl LRb2,LRe1]} 17. Re2 {[%emt 0:00:42]} Rd8 {[%emt 0:01:05]} 18. Na3 {[%emt 0:01:32]} c4 {[%emt 0:01:51]} 19. Rd1 {[%emt 0:04:49]} Na6 {[%emt 0:09:44][%cal Ob6b5]} 20. Red2 {[%emt 0:01:47]} Qc6 {[%emt 0:02:20]} 21. Qe3 {[%emt 0:00:54]} b5 {[%emt 0:02:23]} 22. b3 {[%emt 0:15:53]} Rd6 {[%emt 0:03:39]} 23. Be2 {[%emt 0:02:19]} Rad8 $2 {[%emt 0:00:54]} (23... Nac5 $2 24. bxc4 Qxe4 25. Qxe4 (25. Bxd3 Qxe3 26. fxe3 Rad8 $16) 25... Nxe4 26. Rxd3 $18) (23... Rc8 $16 24. bxc4 (24. Bxd3 Rxd3 25. Rxd3 cxd3 $16) (24. Qxa7 Nac5 $11) 24... bxc4) 24. Bxd3 $2 {[%emt 0:06:50]} (24. bxc4 $1 $18 {is the precise move to win.} bxc4 25. Nxc4 $1 {[%mdl 512]} (25. Bxd3 cxd3 26. Rxd3 Rxd3 $14) 25... Qxc4 26. Rxd3 Rxd3 27. Rxd3 Rxd3 28. Bxd3 (28. Qxd3 Qxd3 29. Bxd3 Nc5 $16)) 24... cxd3 $16 {[%emt 0:00:28]} 25. Rxd3 {[%emt 0:00:46]} b4 {[%emt 0:01:34]} (25... Nc5 $16 {was necessary.} 26. Rxd6 Rxd6 27. Rxd6 Qxd6) 26. Nc4 $18 {[%emt 0:05:08][%cal Rd3d6]} Rxd3 {[%emt 0:00:51]} 27. Rxd3 {[%emt 0:00:09]} Rxd3 {[%emt 0:00:08]} 28. Qxd3 {[%emt 0:00:07] Hoping for cxb4.} bxc3 {[%emt 0:00:39][%mdl 4096] Endgame KQN-KQN} (28... Qc7 $16 29. cxb4 Nxb4) 29. f3 $4 {[%emt 0:02:16][%mdl 8192]} (29. Nxe5 c2 30. Nxc6 (30. Qd8+ Kg7 $17) 30... c1=Q+ 31. Kg2 Qxc6 32. Qd8+ Kg7 33. Qd4+ Kf8 34. Qd8+ Kg7 35. Qd4+ Qf6 36. Qxa7 Nb4 $17) (29. Qxc3 $18 {and life is good for White. And now Qa5 would win.} Nc5 30. Nxe5) 29... Qc5+ $19 {[%emt 0:00:37]} 30. Kf1 {[%emt 0:00:28]} Qd4 {[%emt 0:00:19]} 31. Ke2 {[%emt 0:02:07] [#]} Nb4 $1 {[%emt 0:00:37][%csl LRa2,LRd3]} 32. Qxd4 {[%emt 0:02:13]} (32. Qd1 Nxa2 33. Ne3) 32... exd4 {[%emt 0:00:02] KN-KN} 33. Ne5 {[%emt 0:01:45] Against d3+} f6 $2 {[%emt 0:00:38]} ({Black should try} 33... Nxa2 $19 {Threatens to win with ...c2.} 34. Nd3 a5) 34. Nd3 $11 {[%emt 0:00:35]} c2 $2 {[%emt 0:00:39] White leaves nothing to chance now.} 35. Nc1 $18 {[%emt 0:00:22]} d3+ {[%emt 0:00:42]} (35... f5 $142 36. exf5 gxf5) 36. Kd2 {[%emt 0:00:13]} Kf7 {[%emt 0:00:30]} 37. a3 {[%emt 0:00:20]} Nc6 {[%emt 0:00:17]} 38. Kxd3 {[%emt 0:00:12]} (38. Nxd3 $6 Nd4 $16) 38... Ke6 {[%emt 0:00:27]} (38... Ne5+ $142 39. Ke2 (39. Kxc2 Nxf3 40. h4 Ke6 $14) 39... Ke7) 39. Ne2 {[%emt 0:00:32]} ({Less strong is} 39. Kxc2 Nd4+ 40. Kd3 Nxf3 $16) 39... Ne5+ {[%emt 0:00:30] [#]} 40. Ke3 $1 {[%emt 0:00:21]} ({Stronger than} 40. Kxc2 Nxf3 41. h4 g5 $11) 40... g5 {[%emt 0:00:22]} (40... Kd6 $142 41. h3 a5) 41. Nd4+ {[%emt 0:30:16]} Kd6 {[%emt 0:30:35]} 42. Nxc2 {[%emt 0:00:14]} g4 {[%emt 0:00:22]} (42... Ng6 $142 43. f4 Kc5 44. b4+ Kc4) 43. f4 {[%emt 0:00:59]} Nf3 {[%emt 0:00:23]} 44. h3 {[%emt 0:01:48]} Nd2 {[%emt 0:00:58]} (44... Nh2 $142 45. hxg4 Nxg4+ 46. Kf3 Nh2+ 47. Ke2 Ng4) 45. hxg4 {[%emt 0:00:17]} ({Wrong is} 45. Kxd2 $2 gxh3 46. e5+ fxe5 47. fxe5+ Ke7 $19) 45... Nxb3 {[%emt 0:00:14]} 46. Nd4 {[%emt 0:00:13]} Na5 {[%emt 0:00:57]} 47. Kd3 {[%emt 0:01:48]} a6 {[%emt 0:00:00]} 48. Kc3 {[%emt 0:00:00]} Nb7 {[%emt 0:00:00]} 49. Nb3 {[%emt 0:00:00]} Nd8 {[%emt 0:00:00]} 50. Nd4 $2 {[%emt 0:00:00]} (50. Kc4 $18) 50... Nf7 $2 {[%emt 0:00:00][%mdl 8192]} (50... Nb7 $11 51. Kc4 Na5+ 52. Kb4 Nb7 53. Nf5+ Ke6) 51. Nf3 {[%emt 0:00:00]} Kc5 {[%emt 0:00:00]} 52. g5 {[%emt 0:00:00]} Nd6 {[%emt 0:00:00]} 53. Kd3 {[%emt 0:00:00]} fxg5 {[%emt 0:00:00]} 54. Nxg5 {[%emt 0:00:00]} h6 {[%emt 0:00:00]} 55. Ne6+ {[%emt 0:00:00]} Kb6 {[%emt 0:00:00]} 56. e5 {[%emt 0:00:00]} Nf5 {[%emt 0:00:00]} 57. g4 {[%emt 0:00:00]} Ng3 {[%emt 0:00:00]} 58. Ng7 {[%emt 0:00:00] Weighted Error Value: White=0.40/Black=0.69} 1-0

[Event "FIDE CB Open 2022"]
[Site "Ceske Budejovice"]
[Date "2022.07.05"]
[Round "5.35"]
[White "Pavlis, Matej"]
[Black "Zilavy, Jan"]
[Result "0-1"]
[ECO "A88"]
[WhiteElo "1625"]
[BlackElo "2090"]
[Annotator "TA"]
[PlyCount "114"]
[EventDate "2022.07.01"]
[EventType "swiss"]
[EventCountry "CZE"]
[SourceTitle "playchess.com"]
[Source "ChessBase"]
[SourceQuality "1"]
[TimeControl "40/5400+30:1800+30"]

{[%evp 14,114,31,15,32,0,0,8,19,-47,-54,-52,-31,-25,-30,-77,-20,-90,-75,-56,0,-120,-107,-209,-237,-270,-270,-270,-90,-218,-191,-335,0,0,1,-57,-18,-10,-18,-24,0,0,0,0,0,0,0,0,0,0,10,0,0,0,0,-8,0,0,0,-128,-68,-57,-47,-59,-49,-56,-59,-86,-88,-234,-218,-414,-414,-393,-352,-627,-580,-808,-784,-764,-368,-1485,-1141,-914,-850,-1586,-1589,-29972,-29969,-29979,-29980,-29985,-29986,-29986,-29987,-29987,-29988,-29989,-29990,-29990,-29991,-29991,-29992]} 1. d4 {[%emt 0:00:03]} f5 {[%emt 0:00:11]} 2. c4 {[%emt 0:00:27]} Nf6 {[%emt 0:00:07]} 3. Nf3 {[%emt 0:00:29]} g6 {[%emt 0:00:16]} 4. g3 {[%emt 0:01:28]} Bg7 {[%emt 0:00:07]} 5. Bg2 {[%emt 0:00:11]} O-O {[%emt 0:00:31]} 6. O-O {[%emt 0:01:22]} d6 {[%emt 0:00:05]} 7. Nc3 {[%emt 0:04:17]} c6 $1 {[%emt 0:00:10][%mdl 4] is recently more successful than 7...Qe8.} 8. Bg5 {[%emt 0:02:49]} Qc7 {[%emt 0:06:28] A88: Dutch Defence: Leningrad System: 5 Nf3 0-0 6 0-0 d6 7 Nc3 c6.} 9. Bxf6 {[%emt 0:03:48]} Bxf6 {[%emt 0:00:17]} 10. e4 {[%emt 0:00:13]} e5 {[%emt 0:01:16] The position is equal.} 11. dxe5 {[%emt 0:06:06]} (11. Rb1 $11) 11... dxe5 $15 {[%emt 0:00:15]} 12. Re1 {[%emt 0:03:09] [#]} f4 $146 {[%emt 0:03:27]} ({Predecessor:} 12... Be6 13. Qe2 Nd7 14. Rac1 Rae8 15. b4 f4 16. Red1 g5 17. Ne1 g4 18. f3 h5 {0-1 (31) Villadsen,O (1807)-Pedersen,B (2088) Randers 2015}) 13. gxf4 {[%emt 0:10:36]} Bg4 {[%emt 0:03:48]} 14. Qe2 {[%emt 0:10:11]} (14. fxe5 $2 Bxe5 15. Qd3 Bxf3 16. Bxf3 Qf7 $19) (14. f5 $1 $11) 14... Na6 {[%emt 0:03:26]} ({Better is} 14... exf4 $17 {Strongly threatening ...Nd7.} 15. e5 Bg7) 15. h3 {[%emt 0:08:41]} (15. f5 $1 $11) 15... Bh5 {[%emt 0:00:22]} 16. f5 {[%emt 0:06:25]} (16. fxe5 Bxe5 17. c5 Bxf3 18. Bxf3 Qf7 $17) 16... Be7 {[%emt 0:19:16]} (16... Qg7 $15) 17. a3 {[%emt 0:04:17]} (17. Qc2 $1 $11 {remains equal.}) 17... gxf5 $17 {[%emt 0:20:30]} 18. exf5 {[%emt 0:00:32]} (18. b4 $17) 18... Rxf5 $19 {[%emt 0:00:12]} 19. Qe4 {[%emt 0:01:36]} Raf8 {[%emt 0:04:33]} 20. Nxe5 {[%emt 0:01:24]} Bc5 $2 {[%emt 0:12:09] This bishop pair is nice.} (20... Rxf2 21. Ng4 Bxg4 22. Qxg4+ Kh8 23. Qd4+ Kg8 24. Qg4+ Kh8 25. Qd4+ Kg8 26. Qg4+ $11) (20... Nc5 $1 $19 {[%cal Rc5e4]} 21. Qd4 Bf6 22. Qxc5 (22. f4 $2 Nb3 $19) 22... Bxe5 23. Rxe5 Rxe5) 21. Ng4 {[%emt 0:06:05]} (21. Nd3 $17 {was forced.}) 21... Qg7 $1 {[%emt 0:00:51][%mdl 1024] Black has strong compensation.} ({Weaker is} 21... Bxf2+ 22. Nxf2 Rxf2 23. Qe5 $11) 22. Kh1 {[%emt 0:10:10]} (22. Qe6+ {was necessary.} Kh8 23. Ne4 (23. Kh1 $2 Bxg4 24. hxg4 Qxg4 $19)) 22... Kh8 $2 {[%emt 0:04:08]} ({Black should try} 22... Bxg4 $19 23. Qxg4 Rg5 24. Qe6+ Kh8) 23. f3 $11 {[%emt 0:03:16]} Bg6 {[%emt 0:01:23]} 24. Ne5 {[%emt 0:01:52]} (24. Rad1 $11) 24... Rg5 {[%emt 0:01:12]} 25. Nxg6+ {[%emt 0:00:16]} Rxg6 {[%emt 0:00:06]} 26. Re2 {[%emt 0:00:51]} Rg8 {[%emt 0:01:57][%cal Rg6g2]} 27. f4 {[%emt 0:01:01]} Bd6 {[%emt 0:05:30]} 28. Rd1 {[%emt 0:02:25]} Bxf4 {[%emt 0:01:39]} 29. Qxf4 {[%emt 0:02:35]} Rxg2 {[%emt 0:00:14]} 30. Qd4 {[%emt 0:00:01] Against Rg1+} Qxd4 {[%emt 0:01:50]} 31. Rxd4 {[%emt 0:00:08]} Rg1+ {[%emt 0:00:11]} 32. Kh2 {[%emt 0:00:07]} Nc5 {[%emt 0:00:43]} 33. Rdd2 {[%emt 0:01:41]} R1g7 {[%emt 0:02:35]} 34. Rg2 {[%emt 0:00:51]} Nb3 {[%emt 0:02:36]} 35. Rxg7 {[%emt 0:00:26]} Nxd2 {[%emt 0:00:07]} 36. Rxg8+ {[%emt 0:00:31]} (36. Rxb7 $2 {leads to mate.} Nf3+ 37. Kh1 Rg1#) (36. Rf7 $11) 36... Kxg8 {[%emt 0:00:03][%mdl 4096] Endgame KN-KN} 37. c5 {[%emt 0:00:37]} Kf7 {[%emt 0:00:52]} 38. Kg3 {[%emt 0:01:25]} Nc4 {[%emt 0:00:50]} 39. Nd1 {[%emt 0:03:50]} Kg6 {[%emt 0:01:59]} 40. a4 {[%emt 0:01:03] Black converts the advantage convincingly.} a5 {[%emt 0:00:53] ...Kg5 is the strong threat.} 41. Kf4 {[%emt 0:05:14] [#]} (41. Kh4 $17) 41... Kh5 $1 $19 {[%emt 0:02:15] aiming for ...Kh4.} 42. Ke4 $2 {[%emt 0:00:22] [#]} (42. Kg3 {keeps fighting.}) 42... Kh4 $1 {[%emt 0:00:32]} 43. Kd4 {[%emt 0:00:05]} Nd2 {[%emt 0:00:35]} 44. Ke5 $2 {[%emt 0:00:08]} (44. Kd3 Nf3 45. Ke4) 44... Kxh3 {[%emt 0:00:26]} 45. Kd6 {[%emt 0:03:12]} Ne4+ {[%emt 0:09:37]} 46. Kc7 {[%emt 0:03:01]} Nxc5 {[%emt 0:00:11]} (46... Kg3 $142 47. Ne3 Nxc5) 47. Nc3 $2 {[%emt 0:00:05]} (47. Kb6 Nxa4+ 48. Kxa5 Nxb2 49. Nxb2) 47... Kg4 {[%emt 0:02:21] Hoping for ...h5.} 48. Kb6 {[%emt 0:00:06]} Nd3 {[%emt 0:01:34] White must now prevent ...h5.} 49. Kxb7 {[%emt 0:02:06]} h5 {[%emt 0:01:17] ( -> ...h4)} 50. Kb6 {[%emt 0:02:34]} h4 {[%emt 0:00:27] Black mates.} 51. Nd1 {[%emt 0:00:04]} Kf3 {[%emt 0:00:18]} 52. Kxa5 {[%emt 0:01:17]} h3 {[%emt 0:00:19]} 53. Kb6 {[%emt 0:00:03]} h2 {[%emt 0:00:18]} 54. a5 {[%emt 0:00:10]} h1=Q {[%emt 0:00:10]} 55. a6 {[%emt 0:00:11]} Qxd1 {[%emt 0:00:42]} 56. a7 {[%emt 0:00:02]} Qa4 {[%emt 0:00:18]} 57. Kb7 {[%emt 0:00:14]} Nc5+ {[%emt 0:00:27] Weighted Error Value: White=0.75/Black=0.33} 0-1

[Event "FIDE CB Open 2022"]
[Site "Ceske Budejovice"]
[Date "2022.07.05"]
[Round "5.36"]
[White "Sadek, Vojtech"]
[Black "Holub, Adam"]
[Result "1-0"]
[ECO "C57"]
[WhiteElo "1973"]
[BlackElo "1817"]
[Annotator "TA"]
[PlyCount "115"]
[EventDate "2022.07.01"]
[EventType "swiss"]
[EventCountry "CZE"]
[SourceTitle "playchess.com"]
[Source "ChessBase"]
[SourceQuality "1"]
[TimeControl "40/5400+30:1800+30"]

{[%evp 18,115,114,93,229,175,197,216,267,270,296,257,328,168,160,119,116,101,109,101,112,65,102,75,87,88,129,129,210,111,146,96,111,111,146,89,112,66,81,0,0,0,0,0,0,0,0,0,121,0,18,-409,0,0,0,0,5,4,4,0,4,4,50,8,134,141,127,116,131,8,8,8,8,4,8,0,8,8,8,10,26,8,10,10,2659,2341,29973,29974,29982,29983,29983,29984,29984,29985,29985,29980,29980,29981,29981,29982]} 1. e4 {[%emt 0:00:05]} e5 {[%emt 0:00:24]} 2. Nf3 {[%emt 0:00:19][%cal Bg1f3,Bf3g5,Bg5e4][%mdl 32]} Nc6 {[%emt 0:00:14]} 3. Bc4 {[%emt 0:00:07]} Nf6 {[%emt 0:01:01]} 4. Ng5 {[%emt 0:00:19]} d5 {[%emt 0:00:58]} 5. exd5 {[%emt 0:00:07]} b5 {[%emt 0:01:46]} 6. Bf1 {[%emt 0:04:11]} Nd4 {[%emt 0:01:44]} 7. c3 {[%emt 0:02:37]} Nxd5 {[%emt 0:02:08]} 8. Ne4 {[%emt 0:08:56]} Qh4 {[%emt 0:09:46]} 9. Ng3 {[%emt 0:04:55]} Bg4 {[%emt 0:03:04]} 10. f3 {[%emt 0:00:09]} Nf5 {[%emt 0:14:25] C57: Two Knights: Wilkes-Barre/Traxler and 4 Ng5 d5 5 exd5, unusual Black 5th moves.} 11. Bxb5+ $18 {[%emt 0:02:19]} ({Worse is} 11. fxg4 Nxg3 12. Bxb5+ Ke7 13. hxg3 Qxh1+ 14. Bf1 f6 $17) 11... Kd8 {[%emt 0:01:29]} 12. O-O $1 {[%emt 0:03:45]} Nxg3 {[%emt 0:10:47] White is clearly better.} 13. hxg3 {[%emt 0:00:11] Dancing on a razor blade.} Qf6 {[%emt 0:03:08]} 14. d4 {[%emt 0:10:43] [#]} Qb6 $146 {[%emt 0:16:24]} ({Predecessor:} 14... Be6 15. c4 exd4 16. cxd5 Bxd5 17. Nc3 Bb7 18. Ne4 Qb6 19. Bd3 h6 20. Qb3 Qxb3 21. axb3 f5 22. Nd2 Bd6 23. Kf2 g6 24. Nc4 Bc5 25. Bf4 Bd5 26. Ra5 {1-0 (26) Tayar,J (2343)-Kraiouchkine,N (2122) Toronto 2008}) 15. Bc4 {[%emt 0:08:22]} (15. fxg4 $142 Qxb5 16. Rxf7) 15... Be6 {[%emt 0:02:00]} 16. Qb3 {[%emt 0:04:39]} Qxb3 {[%emt 0:01:35]} 17. Bxb3 {[%emt 0:08:46]} exd4 {[%emt 0:00:24]} 18. cxd4 {[%emt 0:00:28]} Bd6 {[%emt 0:02:03]} 19. f4 {[%emt 0:02:28]} (19. Kf2 $16) 19... g6 {[%emt 0:04:28]} 20. Nc3 {[%emt 0:02:04]} Nxc3 {[%emt 0:01:17]} 21. bxc3 {[%emt 0:00:02]} c5 {[%emt 0:01:52]} 22. Ba3 {[%emt 0:05:07]} Bg4 {[%emt 0:03:32]} (22... Rc8 $16 23. Bxe6 fxe6) 23. d5 {[%emt 0:03:20]} (23. dxc5 $18 Bf8 24. Rae1 (24. Bxf7 Rc8 $18)) 23... Rc8 {[%emt 0:00:30]} 24. Ba4 {[%emt 0:03:10] Inhibits Re8.} (24. c4 $142) 24... Kc7 {[%emt 0:02:21]} 25. c4 {[%emt 0:00:29]} Bf5 {[%emt 0:01:11]} 26. Kf2 {[%emt 0:06:04]} (26. Bb2 $142) 26... Rb8 {[%emt 0:01:31]} 27. Rfe1 {[%emt 0:03:29]} (27. Bb3 $16) 27... h5 $14 {[%emt 0:00:24]} 28. Rac1 {[%emt 0:02:14]} ({Better is} 28. Rh1 $16) 28... h4 $11 {[%emt 0:00:55]} 29. Bc2 {[%emt 0:04:17]} ({Don't play} 29. gxh4 Rxh4 30. Bb3 Rxf4+ 31. Kg1 Rh8 $15) 29... hxg3+ {[%emt 0:01:17]} 30. Kxg3 {[%emt 0:00:31]} Bxc2 {[%emt 0:01:13]} 31. Rxc2 {[%emt 0:00:00]} g5 $1 {[%emt 0:00:38]} 32. Bc1 {[%emt 0:00:00]} Rbe8 {[%emt 0:03:11]} (32... Rbg8 $11 {keeps the balance.}) 33. Kf2 {[%emt 0:03:10]} ({White must play} 33. Rxe8 $1 $16 Rxe8 34. Kf3) 33... gxf4 {[%emt 0:00:30]} 34. Bxf4 $2 {[%emt 0:00:14][%mdl 8192]} Rxe1 $2 {[%emt 0:00:48]} ({Black should try} 34... Bxf4 $19 35. Rxe8 Rxe8) 35. Bxd6+ {[%emt 0:00:02]} Kxd6 {[%emt 0:00:07]} 36. Kxe1 {[%emt 0:00:04][%mdl 4096] Endgame KR-KR} Rh4 {[%emt 0:00:40]} 37. Kd2 {[%emt 0:00:17]} Rg4 {[%emt 0:01:49]} 38. Kc3 {[%emt 0:00:07] Threatening Kb3.} Rg3+ {[%emt 0:00:41]} 39. Kb2 {[%emt 0:00:03]} f5 {[%emt 0:04:35]} (39... a6 $11) 40. Re2 {[%emt 0:02:43]} (40. Rf2 $5 {[%cal Rf2f5]}) 40... Rg4 {[%emt 0:02:06]} (40... a5 $11) 41. Kb3 $16 {[%emt 0:32:05]} Kd7 {[%emt 0:06:09]} 42. Rc2 $1 {[%emt 0:00:00] And now Ka4 would win.} Kc7 {[%emt 0:01:35] [#]} 43. a3 {[%emt 0:00:00]} (43. Rf2 $1 $16 {[%cal Rf2f5]}) 43... a6 {[%emt 0:04:32]} 44. Rf2 {[%emt 0:00:00]} Rg3+ {[%emt 0:03:57]} 45. Ka4 {[%emt 0:00:00]} Rg4 {[%emt 0:01:50]} 46. Kb3 {[%emt 0:00:00]} Rg3+ {[%emt 0:00:11]} 47. Rf3 {[%emt 0:00:55]} Rxg2 {[%emt 0:01:27]} 48. Rxf5 {[%emt 0:01:16] Threatens to win with Rf6.} Rg3+ {[%emt 0:00:37]} 49. Ka4 {[%emt 0:00:07]} Rg4 {[%emt 0:01:31]} 50. Rf7+ {[%emt 0:00:50]} Kc8 $2 {[%emt 0:03:26][%mdl 8192] [#]} (50... Kd6 $11) 51. Ka5 $1 $18 {[%emt 0:03:33] Black must now prevent Kb6.} Rxc4 {[%emt 0:01:53]} 52. Kb6 {[%emt 0:00:08] White mates.} Rc3 {[%emt 0:04:35]} 53. Kc6 {[%emt 0:00:31][%cal Rf7f8]} Kd8 {[%emt 0:03:01]} 54. d6 {[%emt 0:00:07][%cal Rf7f8,Bd5d6,Bd6d7][%mdl 32]} Ke8 {[%emt 0:01:06]} 55. Rh7 {[%emt 0:01:33]} Rd3 {[%emt 0:00:46]} 56. d7+ {[%emt 0:00:25]} Kd8 {[%emt 0:00:13]} 57. Rh8+ {[%emt 0:00:08]} Ke7 {[%emt 0:00:07]} 58. Re8+ {[%emt 0:00:13] Weighted Error Value: White=0.43/Black=0.49} 1-0

[Event "FIDE CB Open 2022"]
[Site "Ceske Budejovice"]
[Date "2022.07.05"]
[Round "5.37"]
[White "Nejdl, Eduard"]
[Black "Rucabado, Stefan"]
[Result "1/2-1/2"]
[ECO "B51"]
[WhiteElo "1951"]
[BlackElo "1809"]
[Annotator "TA"]
[PlyCount "61"]
[EventDate "2022.07.01"]
[EventType "swiss"]
[EventCountry "CZE"]
[SourceTitle "playchess.com"]
[Source "ChessBase"]
[SourceQuality "1"]
[TimeControl "40/5400+30:1800+30"]

{[%evp 11,61,35,53,35,42,47,55,33,60,60,83,0,116,-9,-11,-44,-31,-27,-25,-31,10,0,19,17,64,15,60,-16,-3,-58,-62,-62,-29,-42,-40,-47,-14,-37,0,0,96,76,73,68,85,99,84,84,124,4,6,5]} 1. e4 {[%emt 0:01:00]} c5 {[%emt 0:04:05]} 2. Nf3 {[%emt 0:00:09]} d6 {[%emt 0:00:08]} 3. Bb5+ {[%emt 0:00:14]} Nd7 {[%emt 0:00:07]} 4. O-O {[%emt 0:00:18]} Ngf6 {[%emt 0:00:06]} 5. Re1 {[%emt 0:00:41]} a6 {[%emt 0:00:15]} 6. Bf1 {[%emt 0:00:34]} e5 {[%emt 0:03:06]} 7. c3 {[%emt 0:00:14] B51: Sicilian: Moscow Variation (3 Bb5+) without 3...Bd7.} Be7 {[%emt 0:00:09]} 8. d4 {[%emt 0:00:47]} O-O {[%emt 0:00:07]} 9. a4 {[%emt 0:00:39][%cal Ba2a4,Ba4a5][%mdl 32] [#] White is slightly better.} Rb8 $146 {[%emt 0:00:18]} ({Predecessor:} 9... exd4 10. cxd4 d5 11. exd5 Nxd5 12. Bc4 N7b6 13. Ba2 Nb4 14. Nc3 Nxa2 15. Rxa2 Bg4 {0-1 (54) Gallagher,J (2522)-Karthikeyan,M (2530) London 2016}) 10. a5 {[%emt 0:01:23]} Re8 {[%emt 0:09:26]} 11. Nbd2 {[%emt 0:00:45] White is more active.} (11. d5 $16) 11... Bf8 {[%emt 0:00:34]} (11... exd4 $11 12. cxd4 cxd4) 12. Bc4 {[%emt 0:01:41]} (12. d5 $16) 12... cxd4 {[%emt 0:06:42]} 13. Qb3 {[%emt 0:11:20]} d5 {[%emt 0:03:31]} 14. exd5 {[%emt 0:02:39]} Nc5 {[%emt 0:00:23]} 15. Qa2 {[%emt 0:00:58]} Bd6 {[%emt 0:00:37]} 16. b4 {[%emt 0:05:22]} Ncd7 {[%emt 0:16:08][%cal Bc5d7,Bd7e5,Be5f3][%mdl 32]} 17. cxd4 {[%emt 0:07:54]} exd4 {[%emt 0:00:39]} (17... e4 $11 18. Ng5 b5 19. axb6 Nxb6) 18. Rxe8+ {[%emt 0:00:25]} (18. Bb2 $14 {was preferrable.}) 18... Qxe8 {[%emt 0:00:06]} 19. Ba3 {[%emt 0:00:28]} (19. Bb2 $14) 19... b5 $11 {[%emt 0:26:56]} 20. Bd3 {[%emt 0:03:09]} ({White should play} 20. axb6 $11 Nxb6 21. Qb2) 20... Bb7 $15 {[%emt 0:00:51]} 21. Qb2 {[%emt 0:00:30]} Ne5 {[%emt 0:10:06]} 22. Re1 {[%emt 0:03:34] [#] Strongly threatening Nxe5.} Nxf3+ {[%emt 0:02:23]} (22... Bxd5 $2 23. Nxe5 Bxe5 24. f4 $18) 23. Nxf3 {[%emt 0:00:15]} Qf8 {[%emt 0:00:24]} 24. Qxd4 {[%emt 0:01:22]} (24. Nxd4 {is more complex.} Re8 25. Rxe8 Qxe8 26. Nf5) 24... Bxd5 {[%emt 0:00:37]} (24... h6 {looks sharper.} 25. Ne5 Re8 26. Bf1 Nxd5 27. Nd7 Rxe1 28. Nxf8 Nf4) 25. Bb2 {[%emt 0:11:36]} Rd8 {[%emt 0:01:12]} (25... Bxf3 $11 {remains equal.} 26. gxf3 Bxb4) 26. Qh4 $16 {[%emt 0:01:41]} h6 {[%emt 0:04:56]} 27. Bxf6 {[%emt 0:09:10]} gxf6 {[%emt 0:00:04]} 28. Qxf6 {[%emt 0:00:39][%cal Of3g5] [#] And now Ng5! would win.} Bxf3 {[%emt 0:04:11]} 29. Qxf3 {[%emt 0:00:34] Re4 is the strong threat.} Qg7 {[%emt 0:01:27]} 30. Qe4 {[%emt 0:03:31]} ({White should try} 30. Re4 $16 {Threatens to win with Rg4.} Qa1+ 31. Bf1) 30... Bxb4 $11 {[%emt 0:01:42]} 31. Qxb4 {[%emt 0:11:57] Weighted Error Value: White=0.38/Black=0.30} 1/2-1/2